bitfinex/quotes_SOLUSD_20250601
["timestamp","ask_amount","ask_price","bid_price","bid_amount"]
[1748789592704,6.52145558,153.34,153.31,20.4241331]
[1748789594815,6.52145558,153.34,153.3,20.4241331]
[1748789596215,6.52145558,153.34,153.28,17.14398499]
[1748789596421,6.52145558,153.34,153.3,20.4241331]
[1748789596604,20.4241331,153.35,153.28,10.62]
[1748789596605,6.52103032,153.35,153.28,10.62]
[1748789596801,20.4241331,153.31,153.28,10.62]
[1748789597104,20.4241331,153.3,153.28,10.62]
[1748789598420,20.4241331,153.31,153.28,10.62]
[1748789598609,26.94680233,153.32,153.28,10.62]
[1748789598919,6.52266923,153.32,153.28,31.0441331]
[1748789599420,26.94558868,153.34,153.29,20.4241331]
[1748789599604,6.52145558,153.34,153.3,20.4241331]
[1748789599798,1.5409,153.36,153.28,10.62]
[1748789599799,8.06153632,153.36,153.32,20.4241331]
[1748789600323,28.48566942,153.36,153.32,20.4241331]
[1748789601406,28.48566942,153.36,153.31,20.4241331]
[1748789601721,20.4241331,153.34,153.29,60.8041331]
[1748789601898,20.4241331,153.33,153.29,60.8041331]
[1748789602518,20.4241331,153.33,153.29,40.38]
[1748789602726,20.4241331,153.33,153.29,60.8041331]
[1748789603407,26.94636187,153.33,153.29,60.8041331]
[1748789604526,26.94636187,153.33,153.29,20.4241331]
[1748789604904,6.52222877,153.33,153.29,20.4241331]
[1748789605105,1.5409,153.36,153.32,20.4241331]
[1748789605306,20.4241331,153.39,153.34,20.4241331]
[1748789605505,20.4241331,153.38,153.34,20.4241331]
[1748789606726,6.52008519,153.38,153.34,20.4241331]
[1748789606913,22.0189331,153.4,153.36,20.4241331]
[1748789607118,1.5948,153.4,153.37,20.4241331]
[1748789607417,6.51858114,153.41,153.38,20.4241331]
[1748789607808,6.51858114,153.41,153.37,20.4241331]
[1748789608511,26.94271424,153.41,153.37,20.4241331]
[1748789609233,37.110348,153.41,153.37,30.59176686]
[1748789609915,37.110348,153.41,153.36,30.59176686]
[1748789611330,37.110348,153.41,153.37,30.59176686]
[1748789611729,6.51858114,153.41,153.37,30.59176686]
[1748789612235,28.76012576,153.42,153.38,30.59176686]
[1748789612435,59.35189262,153.42,153.38,30.59176686]
[1748789612615,52.83375297,153.42,153.38,30.59176686]
[1748789612816,22.24198611,153.42,153.38,30.59176686]
[1748789613130,37.10983534,153.42,153.38,30.59176686]
[1748789613306,6.51806848,153.42,153.38,30.59176686]
[1748789613736,37.10983534,153.42,153.36,6.52047435]
[1748789613909,37.10983534,153.42,153.38,30.59176686]
[1748789614435,30.59176686,153.41,153.36,30.59176686]
[1748789615438,30.59176686,153.41,153.37,30.59176686]
[1748789616035,6.51890482,153.4,153.37,30.59176686]
[1748789617618,30.59176686,153.38,153.28,120.18058661]
[1748789617915,30.59176686,153.35,153.31,30.59176686]
[1748789618232,1.6214,153.39,153.32,30.59176686]
[1748789618233,30.59176686,153.37,153.32,30.59176686]
[1748789619618,37.11166891,153.38,153.33,30.59176686]
[1748789620321,6.51805501,153.42,153.33,26.0]
[1748789620527,6.51805501,153.42,153.38,30.59176686]
[1748789620731,6.51805501,153.42,153.39,30.59176686]
[1748789621031,37.10982187,153.42,153.38,30.59176686]
[1748789623550,6.51805501,153.42,153.38,30.59176686]
[1748789623725,8.13918142,153.43,153.39,30.59176686]
[1748789624041,38.73094828,153.43,153.38,30.59176686]
[1748789624223,30.59176686,153.42,153.37,30.59176686]
[1748789627022,6.51847989,153.41,153.37,30.59176686]
[1748789627645,6.51847989,153.41,153.38,30.59176686]
[1748789628226,1.6214,153.43,153.4,30.59176686]
[1748789628425,8.1391219,153.43,153.4,30.59176686]
[1748789629941,8.1391219,153.43,153.39,30.59176686]
[1748789631136,38.73088876,153.43,153.39,30.59176686]
[1748789631339,28.5288481,153.43,153.38,20.3897262]
[1748789631938,6.51678071,153.45,153.42,20.3897262]
[1748789632140,6.51678071,153.45,153.43,20.3897262]
[1748789632939,6.51635605,153.46,153.42,20.3897262]
[1748789633145,6.51635605,153.46,153.41,20.3897262]
[1748789633146,26.90608225,153.46,153.41,20.3897262]
[1748789634043,26.90608225,153.46,153.42,20.3897262]
[1748789634246,6.51635605,153.46,153.42,20.3897262]
[1748789635252,26.90608225,153.46,153.42,20.3897262]
[1748789637427,39.03937506,153.45,153.4,20.3897262]
[1748789637628,39.03937506,153.45,153.35,57.337]
[1748789637629,20.3897262,153.41,153.35,57.337]
[1748789637832,20.3897262,153.39,153.35,77.7267262]
[1748789638349,20.3897262,153.4,153.35,77.7267262]
[1748789638553,20.3897262,153.4,153.35,84.24773763]
[1748789639137,26.90864814,153.4,153.35,84.24773763]
[1748789639866,26.90864814,153.4,153.36,20.3897262]
[1748789641139,20.3897262,153.41,153.36,20.3897262]
[1748789641339,6.51728578,153.44,153.39,20.3897262]
[1748789641536,6.51728578,153.44,153.41,20.3897262]
[1748789642043,8.05252904,153.45,153.41,20.3897262]
[1748789642244,28.44225524,153.45,153.41,20.3897262]
[1748789644851,1.5356,153.45,153.42,20.3897262]
[1748789645153,6.51608569,153.47,153.44,20.3897262]
[1748789645543,6.51554725,153.48,153.45,20.3897262]
[1748789646243,26.90527345,153.48,153.44,20.3897262]
[1748789647146,26.90527345,153.48,153.4,36.58]
[1748789647463,26.90527345,153.48,153.41,20.3897262]
[1748789647464,20.3897262,153.46,153.41,20.3897262]
[1748789648162,20.3897262,153.51,153.45,20.3897262]
[1748789648343,20.3897262,153.5,153.45,20.3897262]
[1748789648667,6.5155069,153.48,153.44,60.7097262]
[1748789648970,26.9052331,153.48,153.44,60.7097262]
[1748789650368,20.3897262,153.45,153.39,1.6646]
[1748789650553,20.3897262,153.45,153.4,20.3897262]
[1748789650862,20.3897262,153.45,153.41,20.3897262]
[1748789651544,26.90623813,153.46,153.41,20.3897262]
[1748789651942,26.90623813,153.46,153.41,26.90820555]
[1748789652138,26.90567589,153.47,153.42,20.3897262]
[1748789652358,6.51594969,153.47,153.42,20.3897262]
[1748789652566,20.3897262,153.48,153.44,20.3897262]
[1748789652864,26.0,153.5,153.46,20.3897262]
[1748789652865,6.51465798,153.5,153.46,20.3897262]
[1748789653241,26.90438418,153.5,153.46,20.3897262]
[1748789654062,20.3897262,153.48,153.44,30.9697262]
[1748789654465,20.3897262,153.47,153.44,10.58]
[1748789655665,26.90587675,153.47,153.44,10.58]
[1748789655874,20.3897262,153.45,153.44,10.58]
[1748789656052,20.3897262,153.45,153.41,46.3897262]
[1748789658267,26.90680863,153.45,153.4,10.58]
[1748789658566,26.90680863,153.45,153.4,71.2897262]
[1748789658964,26.90680863,153.45,153.4,30.9697262]
[1748789659171,26.90680863,153.45,153.41,20.3897262]
[1748789659976,26.90613583,153.46,153.42,20.3897262]
[1748789660468,1.6199,153.47,153.4,17.09881543]
[1748789660469,1.6199,153.47,153.43,20.3897262]
[1748789660642,20.3897262,153.48,153.44,20.3897262]
[1748789661564,26.90538768,153.48,153.4,29.22964886]
[1748789661748,20.3897262,153.47,153.42,20.3897262]
[1748789663169,26.90583122,153.47,153.42,20.3897262]
[1748789664076,26.90583122,153.47,153.41,40.32]
[1748789664373,26.90583122,153.47,153.42,20.3897262]
[1748789664563,26.90583122,153.47,153.43,20.3897262]
[1748789665069,6.51610502,153.47,153.43,20.3897262]
[1748789669252,26.90583122,153.47,153.43,20.3897262]
[1748789669869,26.90583122,153.47,153.42,20.3897262]
[1748789672465,20.3897262,153.46,153.4,10.58]
[1748789672667,20.3897262,153.46,153.41,20.3897262]
[1748789673061,20.3897262,153.45,153.4,30.9697262]
[1748789673459,20.3897262,153.43,153.4,10.58]
[1748789673982,6.51805501,153.42,153.4,10.58]
[1748789674181,6.51805501,153.42,153.36,26.0]
[1748789674182,26.90778121,153.42,153.37,20.3897262]
[1748789674365,20.3897262,153.4,153.36,10.58]
[1748789674565,20.3897262,153.38,153.36,10.58]
[1748789674958,20.3897262,153.38,153.34,20.3897262]
[1748789675968,26.90962896,153.38,153.34,20.3897262]
[1748789676488,26.90962896,153.38,153.33,20.3897262]
[1748789676984,6.51763018,153.43,153.37,20.3897262]
[1748789677184,1.6598,153.45,153.41,20.3897262]
[1748789678089,8.17670137,153.45,153.41,20.3897262]
[1748789678394,26.0,153.47,153.44,20.3897262]
[1748789678395,6.51593145,153.47,153.44,20.3897262]
[1748789678568,12.58757069,153.48,153.44,20.3897262]
[1748789678770,6.51557069,153.48,153.44,20.3897262]
[1748789679187,37.08099083,153.48,153.4,6.51883263]
[1748789679367,6.51557069,153.48,153.43,30.56542014]
[1748789679569,37.08099083,153.48,153.43,30.56542014]
[1748789680190,37.08099083,153.48,153.43,37.08299807]
[1748789680392,37.08099083,153.48,153.44,30.56542014]
[1748789680767,30.56542014,153.48,153.44,30.56542014]
[1748789680969,37.08097466,153.48,153.44,30.56542014]
[1748789681664,30.56542014,153.48,153.44,30.56542014]
[1748789682292,38.65883782,153.49,153.44,30.56542014]
[1748789682473,38.65883782,153.49,153.44,37.08259823]
[1748789683387,30.56542014,153.48,153.44,30.56542014]
[1748789684807,30.56542014,153.48,153.44,37.08248364]
[1748789685673,30.56542014,153.48,153.44,30.56542014]
[1748789686162,37.08104715,153.48,153.44,30.56542014]
[1748789686580,30.56542014,153.47,153.43,37.08295901]
[1748789687209,30.56542014,153.45,153.37,107.45789443]
[1748789687504,30.56542014,153.44,153.39,30.56542014]
[1748789687789,32.51605633,153.47,153.39,30.56542014]
[1748789687790,30.56542014,153.43,153.39,30.56542014]
[1748789688090,30.56542014,153.44,153.39,30.56542014]
[1748789688773,30.56542014,153.42,153.38,17.09975485]
[1748789689890,30.56542014,153.41,153.38,17.09975485]
[1748789690078,30.56542014,153.41,153.38,10.58]
[1748789691708,30.56542014,153.39,153.34,10.58]
[1748789691876,30.56542014,153.39,153.34,47.66670579]
[1748789692983,30.56542014,153.39,153.35,30.56542014]
[1748789693781,30.56542014,153.4,153.35,37.08621017]
[1748789695305,30.56542014,153.4,153.36,30.56542014]
[1748789695614,30.56542014,153.41,153.36,30.56542014]
[1748789696484,32.22742014,153.42,153.37,37.08560009]
[1748789697694,30.56542014,153.41,153.37,37.08560009]
[1748789697997,30.56542014,153.41,153.37,30.56542014]
[1748789698602,30.56542014,153.4,153.36,37.08590852]
[1748789698806,6.51736217,153.44,153.39,30.56542014]
[1748789698992,30.56542014,153.44,153.4,30.56542014]
[1748789700109,37.08264935,153.44,153.4,30.56542014]
[1748789700316,30.56542014,153.42,153.36,6.52060511]
[1748789700478,30.56542014,153.41,153.37,30.56542014]
[1748789700681,6.51722921,153.44,153.37,30.56542014]
[1748789700682,30.56542014,153.42,153.37,30.56542014]
[1748789700992,30.56542014,153.42,153.38,30.56542014]
[1748789701301,26.91143412,153.42,153.38,20.39319896]
[1748789702499,20.39319896,153.44,153.4,20.39319896]
[1748789702919,20.39319896,153.43,153.39,20.39319896]
[1748789703224,20.39319896,153.41,153.36,26.91369741]
[1748789703416,26.91182608,153.41,153.36,26.91369741]
[1748789704125,20.39319896,153.4,153.35,20.39319896]
[1748789704292,20.39319896,153.39,153.35,60.71319896]
[1748789704492,6.51862712,153.41,153.34,76.9]
[1748789704493,20.39319896,153.4,153.34,76.9]
[1748789704693,20.39319896,153.4,153.35,20.39319896]
[1748789705425,26.91252877,153.39,153.35,20.39319896]
[1748789705786,20.39319896,153.39,153.35,20.39319896]
[1748789706018,26.91228158,153.4,153.35,20.39319896]
[1748789706204,26.91228158,153.4,153.35,26.91421457]
[1748789706922,26.91228158,153.4,153.36,20.39319896]
[1748789707493,26.91228158,153.4,153.35,20.39319896]
[1748789708208,6.51908262,153.4,153.35,20.39319896]
[1748789708407,26.91228158,153.4,153.35,20.39319896]
[1748789708920,26.91228158,153.4,153.35,26.91415448]
[1748789709225,26.91228158,153.4,153.36,20.39319896]
[1748789709710,26.91179093,153.41,153.36,20.39319896]
[1748789709898,26.91179093,153.41,153.35,6.52095552]
[1748789709899,26.91179093,153.41,153.37,20.39319896]
[1748789710499,20.39319896,153.38,153.34,10.58]
[1748789710698,20.39319896,153.36,153.34,10.58]
[1748789711427,20.39319896,153.37,153.34,10.58]
[1748789711807,20.39319896,153.36,153.34,10.58]
[1748789712618,20.39319896,153.36,153.31,114.25319896]
[1748789712619,20.39319896,153.35,153.31,114.25319896]
[1748789713419,26.91444784,153.35,153.31,93.86]
[1748789713632,20.39319896,153.34,153.31,93.86]
[1748789713932,20.39319896,153.34,153.3,10.58]
[1748789713933,20.39319896,153.34,153.3,30.97319896]
[1748789714322,6.51975485,153.38,153.31,20.39319896]
[1748789714517,26.91295381,153.38,153.33,20.39319896]
[1748789714907,26.91295381,153.38,153.33,26.91503107]
[1748789715434,20.39319896,153.37,153.33,20.39319896]
[1748789715604,20.39319896,153.37,153.32,26.91534226]
[1748789715811,20.39319896,153.36,153.32,26.91534226]
[1748789718256,20.39319896,153.36,153.31,6.52273172]
[1748789718412,20.39319896,153.36,153.32,20.39319896]
[1748789719025,20.39319896,153.36,153.31,6.52273172]
[1748789719026,20.39319896,153.38,153.34,20.39319896]
[1748789720137,20.39319896,153.38,153.34,26.91442082]
[1748789720716,20.39319896,153.39,153.34,26.91442082]
[1748789720934,20.39319896,153.38,153.34,26.91442082]
[1748789724312,20.39319896,153.39,153.34,26.91442082]
[1748789724717,20.39319896,153.38,153.34,26.91442082]
[1748789725513,26.91260728,153.39,153.34,26.91442082]
[1748789726153,26.91260728,153.39,153.35,20.39319896]
[1748789727267,1.6638,153.4,153.37,20.39319896]
[1748789727462,1.6638,153.4,153.36,20.39319896]
[1748789727644,28.57598731,153.4,153.35,20.39319896]
[1748789728867,28.57598731,153.4,153.35,26.91417098]
[1748789729237,20.39319896,153.36,153.3,10.58]
[1748789729445,18.64964886,153.39,153.3,10.58]
[1748789729446,20.39319896,153.35,153.3,30.97319896]
[1748789730850,26.91451128,153.35,153.3,37.49619983]
[1748789731766,20.39319896,153.34,153.3,10.58]
[1748789731943,20.39319896,153.33,153.3,10.58]
[1748789733688,26.91509545,153.33,153.3,10.58]
[1748789733846,20.39319896,153.32,153.3,10.58]
[1748789734169,20.39319896,153.34,153.3,30.97319896]
[1748789734358,20.39319896,153.34,153.3,37.49627525]
[1748789734556,20.39319896,153.35,153.3,37.49627525]
[1748789735062,20.39319896,153.37,153.33,20.39319896]
[1748789735373,26.91310372,153.38,153.33,20.39319896]
[1748789736066,20.39319896,153.37,153.33,20.39319896]
[1748789736249,20.39319896,153.37,153.31,40.32]
[1748789736250,26.9134805,153.37,153.32,26.91523043]
[1748789736445,20.39319896,153.36,153.32,20.39319896]
[1748789738169,20.39319896,153.36,153.31,46.84259761]
[1748789738170,26.91397493,153.36,153.31,40.32]
[1748789738382,20.39319896,153.35,153.31,20.39319896]
[1748789740649,26.91435186,153.35,153.31,20.39319896]
[1748789741385,20.39319896,153.32,153.3,10.58]
[1748789741674,20.39319896,153.32,153.27,26.91736691]
[1748789741866,20.39319896,153.32,153.27,67.23736691]
[1748789742274,26.91552242,153.32,153.27,67.23736691]
[1748789742648,20.39319896,153.32,153.27,67.23736691]
[1748789742855,26.91524228,153.33,153.28,20.39319896]
[1748789743858,26.91524228,153.33,153.26,36.58]
[1748789743859,6.52204332,153.33,153.26,36.58]
[1748789744176,20.39319896,153.31,153.26,63.49799249]
[1748789744564,20.39319896,153.31,153.27,20.39319896]
[1748789744966,28.43380584,153.34,153.29,20.39319896]
[1748789745159,28.43380584,153.34,153.3,20.39319896]
[1748789745363,28.43380584,153.34,153.29,20.39319896]
[1748789746058,20.39319896,153.33,153.28,26.91703224]
[1748789746876,20.39319896,153.33,153.29,20.39319896]
[1748789747255,20.39319896,153.33,153.29,26.91667375]
[1748789750057,20.39319896,153.31,153.27,20.39319896]
[1748789750259,20.39319896,153.32,153.28,20.39319896]
[1748789750458,20.39319896,153.33,153.28,20.39319896]
[1748789750660,20.39319896,153.33,153.29,20.39319896]
[1748789750861,20.39319896,153.33,153.28,20.39319896]
[1748789751263,20.39319896,153.31,153.27,20.39319896]
[1748789753075,26.915688,153.32,153.27,26.91754598]
[1748789753278,26.915688,153.32,153.28,20.39319896]
[1748789753898,149.0,153.36,153.3,20.39319896]
[1748789754064,149.0,153.36,153.33,20.39319896]
[1748789755271,1.5866,153.38,153.35,20.39319896]
[1748789755665,21.97979896,153.42,153.37,20.39319896]
[1748789755985,28.4980216,153.42,153.38,20.39319896]
[1748789756488,20.39319896,153.41,153.37,20.39319896]
[1748789757282,6.51890482,153.4,153.37,20.39319896]
[1748789757876,26.91210378,153.4,153.36,20.39319896]
[1748789759375,20.39319896,153.37,153.33,20.39319896]
[1748789759772,20.39319896,153.36,153.32,20.39319896]
[1748789759969,20.39319896,153.36,153.31,30.97319896]
[1748789760173,20.39319896,153.36,153.32,20.39319896]
[1748789760475,20.39319896,153.37,153.32,20.39319896]
[1748789761282,6.51975485,153.38,153.33,20.39319896]
[1748789761485,6.51947657,153.39,153.35,20.39319896]
[1748789761695,20.39319896,153.4,153.35,20.39319896]
[1748789762382,26.91228415,153.4,153.35,20.39319896]
[1748789762696,26.91228415,153.4,153.34,6.52118998]
[1748789762898,26.91228415,153.4,153.35,20.39319896]
[1748789763277,20.39319896,153.39,153.35,20.39319896]
[1748789764688,20.39319896,153.36,153.31,30.97319896]
[1748789764991,20.39319896,153.35,153.31,37.49590275]
[1748789765185,20.39319896,153.36,153.31,37.49590275]
[1748789766083,26.91386364,153.36,153.31,37.49590275]
[1748789767284,6.52066468,153.36,153.32,20.39319896]
[1748789767793,26.91351799,153.37,153.33,20.39319896]
[1748789767985,6.52031903,153.37,153.33,20.39319896]
[1748789768192,20.39319896,153.39,153.34,20.39319896]
[1748789769094,26.91252877,153.39,153.34,20.39319896]
[1748789773200,6.51874252,153.41,153.35,20.39319896]
[1748789773404,6.51874252,153.41,153.37,20.39319896]
[1748789773704,26.91194148,153.41,153.37,20.39319896]
[1748789774602,26.91194148,153.41,153.36,20.39319896]
[1748789776181,26.56102443,153.43,153.4,20.39319896]
[1748789776508,6.51734813,153.44,153.41,20.39319896]
[1748789777286,6.51687466,153.45,153.41,20.39319896]
[1748789777591,26.91007362,153.45,153.41,20.39319896]
[1748789777892,20.39319896,153.44,153.4,20.39319896]
[1748789778308,26.91063901,153.44,153.4,20.39319896]
[1748789779824,20.39319896,153.41,153.36,10.56]
[1748789779985,20.39319896,153.39,153.36,10.56]
[1748789780187,20.39319896,153.38,153.36,10.56]
[1748789781082,20.39319896,153.38,153.34,20.39319896]
[1748789781406,26.91314048,153.38,153.34,20.39319896]
[1748789781707,26.91314048,153.38,153.33,52.91496784]
[1748789781877,26.91314048,153.38,153.34,20.39319896]
[1748789782427,26.91314048,153.38,153.33,32.52176888]
[1748789782709,26.91314048,153.38,153.33,52.91496784]
[1748789783084,26.91314048,153.38,153.33,46.39319896]
[1748789783479,20.39319896,153.37,153.33,20.39319896]
[1748789783885,20.39319896,153.37,153.33,26.91506016]
[1748789785408,20.39319896,153.37,153.33,20.39319896]
[1748789785809,26.91345181,153.37,153.33,20.39319896]
[1748789786186,6.52025285,153.37,153.33,20.39319896]
[1748789786392,26.91311338,153.38,153.33,20.39319896]
[1748789786593,26.91311338,153.38,153.34,20.39319896]
[1748789787287,20.39319896,153.36,153.32,10.56]
[1748789787484,20.39319896,153.35,153.3,20.39319896]
[1748789787689,20.39319896,153.36,153.32,20.39319896]
[1748789787907,6.52033504,153.37,153.32,20.39319896]
[1748789787908,26.913534,153.37,153.32,20.39319896]
[1748789790010,6.5196913,153.39,153.34,20.39319896]
[1748789790313,46.7985,153.43,153.37,20.39319896]
[1748789790314,6.4985,153.43,153.37,20.39319896]
[1748789790616,20.39319896,153.42,153.37,20.39319896]
[1748789790794,20.39319896,153.42,153.38,20.39319896]
[1748789791116,8.02835564,153.44,153.4,20.39319896]
[1748789791289,8.02835564,153.44,153.41,20.39319896]
[1748789791686,8.02835564,153.44,153.4,20.39319896]
[1748789791912,20.39319896,153.43,153.39,20.39319896]
[1748789793213,26.91125397,153.42,153.38,20.39319896]
[1748789793411,20.39319896,153.41,153.37,20.39319896]
[1748789793993,26.91125397,153.42,153.37,20.39319896]
[1748789794302,20.39319896,153.41,153.37,20.39319896]
[1748789794817,20.39319896,153.42,153.37,20.39319896]
[1748789795001,20.39319896,153.42,153.38,20.39319896]
[1748789795199,26.91082914,153.43,153.38,20.39319896]
[1748789797018,6.51847989,153.41,153.38,20.39319896]
[1748789797190,26.91167885,153.41,153.37,20.39319896]
[1748789797389,26.91167885,153.41,153.36,20.39319896]
[1748789798119,26.91167885,153.41,153.37,20.39319896]
[1748789799020,6.5181836,153.42,153.38,20.39319896]
[1748789800115,26.91138256,153.42,153.38,20.39319896]
[1748789800618,26.91138256,153.42,153.36,6.52053588]
[1748789800822,26.91138256,153.42,153.38,20.39319896]
[1748789802103,26.54290856,153.42,153.38,20.39319896]
[1748789803123,6.1497096,153.42,153.38,20.39319896]
[1748789804319,26.91089984,153.43,153.39,20.39319896]
[1748789804499,6.51770088,153.43,153.39,20.39319896]
[1748789804700,8.02834347,153.44,153.41,20.39319896]
[1748789805302,20.39319896,153.43,153.38,20.39319896]
[1748789805501,20.39319896,153.42,153.38,20.39319896]
[1748789806294,6.51847989,153.41,153.37,20.39319896]
[1748789809926,36.45389644,153.44,153.35,66.3]
[1748789809927,6.51770156,153.43,153.39,20.39319896]
[1748789810508,26.91090052,153.43,153.36,6.52060511]
[1748789810707,26.91090052,153.43,153.39,20.39319896]
[1748789811627,20.39319896,153.41,153.37,20.39319896]
[1748789811811,20.39319896,153.41,153.36,20.39319896]
[1748789812016,6.51890482,153.4,153.36,20.39319896]
[1748789812213,26.91210378,153.4,153.34,10.56]
[1748789812453,20.39319896,153.38,153.34,10.56]
[1748789812608,20.39319896,153.4,153.36,20.39319896]
[1748789813001,26.91180977,153.41,153.36,20.39319896]
[1748789813306,20.39319896,153.43,153.39,20.39319896]
[1748789813518,20.39319896,153.43,153.34,43.08144061]
[1748789813519,20.39319896,153.41,153.34,43.08144061]
[1748789813716,20.39319896,153.4,153.36,20.39319896]
[1748789814132,26.91125515,153.42,153.38,20.39319896]
[1748789814331,6.51805619,153.42,153.38,20.39319896]
[1748789814825,26.91125515,153.42,153.37,20.39319896]
[1748789815325,20.39319896,153.4,153.36,60.67319896]
[1748789815530,6.51805619,153.42,153.36,60.67319896]
[1748789815531,20.39319896,153.41,153.36,60.67319896]
[1748789816307,26.91210378,153.4,153.36,40.28]
[1748789816506,26.91210378,153.4,153.36,60.67319896]
[1748789816836,26.91210378,153.4,153.36,40.28]
[1748789817812,20.39319896,153.39,153.36,40.28]
[1748789819031,20.39319896,153.4,153.35,20.39319896]
[1748789819907,20.39319896,153.39,153.35,20.39319896]
[1748789820109,6.51975485,153.38,153.34,30.95319896]
[1748789821015,26.91295381,153.38,153.34,10.56]
[1748789821215,20.39319896,153.37,153.34,10.56]
[1748789821455,1.511,153.44,153.36,20.39319896]
[1748789821741,21.90419896,153.44,153.39,20.39319896]
[1748789821916,20.39319896,153.43,153.39,20.39319896]
[1748789822308,26.91082914,153.43,153.38,20.39319896]
[1748789822536,20.39319896,153.41,153.37,40.28]
[1748789822727,20.39319896,153.41,153.34,10.56]
[1748789822728,20.39319896,153.4,153.35,20.39319896]
[1748789823709,6.51932981,153.39,153.35,20.39319896]
[1748789824138,26.91252877,153.39,153.35,20.39319896]
[1748789825022,26.91252877,153.39,153.34,71.23319896]
[1748789825725,26.91252877,153.39,153.35,20.39319896]
[1748789826616,26.91252877,153.39,153.34,30.95319896]
[1748789826819,20.39319896,153.39,153.35,20.39319896]
[1748789827511,20.39319896,153.4,153.35,20.39319896]
[1748789827712,6.51932981,153.39,153.35,20.39319896]
[1748789827929,26.91252877,153.39,153.35,20.39319896]
[1748789831014,26.91167885,153.41,153.36,20.39319896]
[1748789831952,6.51847989,153.41,153.37,20.39319896]
[1748789835354,26.0,153.43,153.39,20.39319896]
[1748789835355,6.51789487,153.43,153.39,20.39319896]
[1748789835526,6.51789487,153.43,153.4,20.39319896]
[1748789835721,6.51789487,153.43,153.39,20.39319896]
[1748789836727,26.91109383,153.43,153.39,20.39319896]
[1748789838653,20.39319896,153.42,153.37,60.67319896]
[1748789838847,6.51789487,153.43,153.37,60.67319896]
[1748789838848,20.39319896,153.4,153.37,40.28]
[1748789839524,20.39319896,153.41,153.37,40.28]
[1748789840219,20.39319896,153.41,153.36,20.39319896]
[1748789840727,6.51890482,153.4,153.36,20.39319896]
[1748789842476,20.39319896,153.4,153.36,20.39319896]
[1748789844755,20.39319896,153.38,153.34,10.56]
[1748789844936,26.91252877,153.39,153.34,30.95319896]
[1748789846350,20.39319896,153.37,153.34,10.56]
[1748789846665,20.39319896,153.35,153.31,60.67319896]
[1748789846830,26.91444604,153.35,153.31,60.67319896]
[1748789848733,26.91444604,153.35,153.3,71.23319896]
[1748789849052,20.39319896,153.34,153.3,71.23319896]
[1748789849555,20.39319896,153.34,153.3,30.95319896]
[1748789850137,26.91444604,153.35,153.3,30.95319896]
[1748789851840,20.39319896,153.34,153.3,30.95319896]
[1748789852864,26.91503591,153.34,153.3,30.95319896]
[1748789853159,6.52183695,153.34,153.31,20.39319896]
[1748789853661,6.52118301,153.35,153.32,20.39319896]
[1748789854963,26.91380407,153.36,153.32,20.39319896]
[1748789856864,1.6228,153.38,153.3,71.23319896]
[1748789856865,20.39319896,153.35,153.3,71.23319896]
[1748789857859,6.52145558,153.34,153.31,20.39319896]
[1748789858753,26.91438716,153.35,153.31,20.39319896]
[1748789859878,26.91438716,153.35,153.3,50.84]
[1748789860169,1.6228,153.38,153.34,20.39319896]
[1748789860470,1.6228,153.38,153.3,83.36285546]
[1748789860639,1.6228,153.38,153.35,20.39319896]
[1748789861146,8.14269391,153.38,153.35,20.39319896]
[1748789862567,8.14269391,153.38,153.32,6.52222338]
[1748789862870,8.14269391,153.38,153.35,20.39319896]
[1748789863063,28.53589287,153.38,153.34,20.39319896]
[1748789866664,28.53589287,153.38,153.33,20.39319896]
[1748789867457,20.39319896,153.37,153.33,20.39319896]
[1748789867647,28.53589287,153.38,153.33,20.39319896]
[1748789867847,28.53589287,153.38,153.34,20.39319896]
[1748789868052,8.0709,153.33,153.26,20.39319896]
[1748789868274,20.39319896,153.32,153.27,20.39319896]
[1748789868475,20.39319896,153.31,153.26,20.39319896]
[1748789868969,1.5934,153.33,153.27,20.39319896]
[1748789868970,20.39319896,153.32,153.27,20.39319896]
[1748789869174,6.52273172,153.31,153.27,20.39319896]
[1748789869756,6.52273172,153.31,153.26,30.95319896]
[1748789869757,26.91593068,153.31,153.26,30.95319896]
[1748789870061,26.91593068,153.31,153.26,10.56]
[1748789870062,20.39319896,153.28,153.26,10.56]
[1748789871286,26.91761565,153.28,153.26,10.56]
[1748789873074,20.39319896,153.29,153.26,10.56]
[1748789874062,20.39319896,153.3,153.26,30.95319896]
[1748789874573,20.39319896,153.29,153.26,10.56]
[1748789875578,6.52400835,153.28,153.26,10.56]
[1748789876077,26.91720731,153.28,153.26,10.56]
[1748789877364,20.39319896,153.27,153.26,10.56]
[1748789877566,20.39319896,153.27,153.22,97.23319896]
[1748789877879,20.39319896,153.27,153.23,20.39319896]
[1748789878978,26.9177823,153.27,153.22,76.84]
[1748789879270,26.9177823,153.27,153.23,20.39319896]
[1748789879855,6.52458334,153.27,153.23,20.39319896]
[1748789880382,6.5231572,153.3,153.26,20.39319896]
[1748789880694,6.5231572,153.3,153.27,20.39319896]
[1748789881194,6.5231572,153.3,153.26,20.39319896]